[Event "Azerbaijan Men-ch Final 2024"]
[Site "Baku"]
[Date "2024.04.21"]
[Round "1.1"]
[White "Rasulov, Vugar"]
[Black "Muradli, Mahammad"]
[Result "1-0"]
[ECO "B90"]
[WhiteElo "2551"]
[BlackElo "2555"]
[Annotator "TA"]
[PlyCount "121"]
[EventDate "2024.04.20"]
[EventType "k.o."]
[EventCountry "AZE"]
[SourceTitle "playchess.com"]
[Source "ChessBase"]
[SourceQuality "1"]
[TimeControl "5400+30"]

{[%evp 66,121,0,-12,8,-31,29,41,125,54,164,179,455,455,455,431,483,0,241,236,234,233,244,227,225,236,271,264,258,260,262,261,1025,1004,992,859,920,907,837,517,29969,5147,29968,29971,29986,1461,1265,1195,1521,1440,12834,5214,12849,12842,12486,11291,5157,5093]} 1. e4 {[%emt 0:00:05]} c5 {[%emt 0:03:12]} 2. Nf3 {[%emt 0:00:17]} d6 {[%emt 0:00:07]} 3. d4 {[%emt 0:00:24]} cxd4 {[%emt 0:00:06]} 4. Nxd4 {[%emt 0:00:05]} Nf6 {[%emt 0:00:07]} 5. Nc3 {[%emt 0:00:15]} a6 {[%emt 0:00:04]} 6. a3 {[%emt 0:00:31]} Nc6 {[%emt 0:09:11] B90: Sicilian Najdorf: Unusual White 6th moves, 6 Be3 Ng4 and 6 Be3 e5.} 7. Be2 {[%emt 0:08:23]} e5 {[%emt 0:07:15]} 8. Nf3 {[%emt 0:02:50]} h6 {[%emt 0:07:57]} 9. O-O {[%emt 0:00:08]} Be6 {[%emt 0:01:18]} 10. Re1 $146 {[%emt 0:01:30]} ({Predecessor:} 10. h3 Be7 11. Be3 O-O 12. Qd2 Qc7 13. Rad1 Rac8 14. Qc1 Na5 15. Rd2 b5 16. Rfd1 {0-1 Gajdosik,A-Betko,L (2263) SVK Cup Martin 2003 (3)}) 10... Rc8 {[%emt 0:03:20]} 11. Bf1 {[%emt 0:01:09]} g6 {[%emt 0:07:01]} 12. Nd5 {[%emt 0:02:59]} Bxd5 {[%emt 0:01:18]} 13. exd5 {[%emt 0:00:08]} Ne7 {[%emt 0:00:07]} 14. c4 {[%emt 0:01:26]} Bg7 {[%emt 0:00:28]} 15. a4 {[%emt 0:04:05]} a5 {[%emt 0:03:22]} 16. Nd2 {[%emt 0:06:27]} O-O {[%emt 0:01:44]} 17. Ra3 {[%emt 0:00:29]} Nd7 {[%emt 0:06:48]} 18. Ne4 {[%emt 0:01:46]} Qc7 {[%emt 0:05:20]} 19. Rh3 {[%emt 0:01:49]} f5 {[%emt 0:00:10]} 20. Nc3 {[%emt 0:00:22]} g5 {[%emt 0:02:27]} 21. Nb5 {[%emt 0:03:51]} Qb6 {[%emt 0:01:25]} 22. Bd2 {[%emt 0:14:34]} Nc5 {[%emt 0:02:26]} 23. b4 {[%emt 0:08:35]} axb4 {[%emt 0:02:18]} 24. Bxb4 {[%emt 0:00:06]} Ng6 {[%emt 0:01:10]} 25. a5 {[%emt 0:01:19]} Qd8 {[%emt 0:07:05]} 26. Ra3 {[%emt 0:00:21]} e4 {[%emt 0:08:00]} 27. Bxc5 {[%emt 0:03:36]} Rxc5 {[%emt 0:02:58]} 28. a6 {[%emt 0:00:12]} bxa6 {[%emt 0:00:03]} 29. Rxa6 {[%emt 0:00:05]} Be5 {[%emt 0:00:58]} 30. Rc6 {[%emt 0:08:33]} Qf6 {[%emt 0:05:26]} 31. Rxc5 {[%emt 0:02:35]} dxc5 {[%emt 0:00:04]} 32. d6 {[%emt 0:00:06]} Qe6 {[%emt 0:07:47]} 33. Re2 {[%emt 0:09:10]} Rd8 {[%emt 0:00:24]} (33... Qxc4 $2 $18) 34. Ra2 {[%emt 0:01:38]} g4 {[%emt 0:04:39]} (34... Bxd6 $2 35. Rd2 (35. Ra6 $2 Bxh2+ 36. Kh1 Rxd1 $19) 35... Bxh2+ (35... e3 $2 36. Rxd6 Rxd6 37. Qxd6 $18) 36. Kxh2 Rxd2 37. Qxd2 $18) 35. Kh1 {[%emt 0:02:21]} (35. Ra6 {simplifies} Nh8 36. Rc6 Nf7 37. Rxc5 Bxd6 38. Nxd6 Rxd6 39. Qa1) 35... Kg7 {[%emt 0:01:23]} (35... Bxd6 $2 36. Rd2 $18 (36. Ra6 Bf8 $14)) (35... Nh8 $15) 36. Ra7+ $11 {[%emt 0:00:37]} Kf6 {[%emt 0:00:25]} (36... Kh8 $1 $14) 37. Qd2 {[%emt 0:00:54]} (37. Nc7 $1 $16 {[%cal Rc7e6]} Qg8 (37... Qxd6 $2 38. Ra6 $18) (37... Rxd6 $2 38. Qa4 $18) 38. Qd2) 37... Bf4 {[%emt 0:00:36]} (37... f4 $14) 38. Qa5 $18 {[%emt 0:00:39]} Rd7 $2 {[%emt 0:00:30]} (38... Rxd6 {is a better defense.} 39. Nxd6 Bxd6) 39. Nc7 $18 {[%emt 0:00:31]} Qf7 {[%emt 0:00:23]} 40. Nd5+ {[%emt 0:00:00]} (40. Qxc5 Bxd6 41. Ra6 Kg7 42. Rxd6 Rxc7 $18) 40... Ke6 {[%emt 0:00:00]} 41. Nc7+ {[%emt 0:00:00]} (41. Ra6 $142) 41... Kf6 $1 $18 {[%emt 0:00:00]} 42. Qxc5 {[%emt 0:00:00]} Bxd6 {[%emt 0:00:00]} 43. Ra6 $1 {[%emt 0:00:00]} Kg7 {[%emt 0:00:00]} 44. Rxd6 {[%emt 0:00:00]} Rxc7 {[%emt 0:00:00] [#]} 45. Qb6 $1 {[%emt 0:00:00]} Nf4 {[%emt 0:00:00]} 46. g3 {[%emt 0:00:00]} (46. Rxh6 $2 Rb7 47. Qd6 Rb1 $19) 46... Nh3 {[%emt 0:00:00] [#]} 47. Qe3 $1 {[%emt 0:00:00]} (47. Rxh6 Rb7 $11) 47... Ng5 {[%emt 0:00:00]} 48. c5 {[%emt 0:00:00]} Qa2 $2 {[%emt 0:00:58]} (48... Qe7 49. Qd4+ Kh7) 49. Qd4+ {[%emt 0:00:00]} Kh7 {[%emt 0:00:23]} 50. Qf6 {[%emt 0:00:00]} Nf7 {[%emt 0:01:41]} 51. Qxf5+ {[%emt 0:00:00]} Kh8 {[%emt 0:00:04]} 52. Qf6+ {[%emt 0:00:00]} Kh7 {[%emt 0:00:42]} (52... Kg8 $18 53. Rd8+ Kh7) 53. Re6 {[%emt 0:00:00]} (53. Qg6+ $142 Kh8 54. Re6 Qa8 55. c6 (55. Qxg4 Rxc5 56. Kg1 Re5 $18) (55. Rxe4 Ng5 $18) (55. Kg1 Qg8 $18) 55... h5 56. Qxh5+ (56. Rxe4 Qxc6 57. Qxh5+ Nh6 $18) 56... Kg8 57. Rg6+ (57. Rxe4 Rxc6 58. Kg1 Qd8 $18) (57. Qxg4+ Kf8 $18) 57... Kf8 58. Qc5+ (58. Qxg4 Qa1 $18) 58... Re7 59. c7 (59. Rxg4 Qa1 $18) (59. Re6 Qa7 $18)) 53... Qa8 {[%emt 0:00:56]} 54. c6 {[%emt 0:00:00]} e3 {[%emt 0:00:44]} 55. fxe3 {[%emt 0:00:00]} (55. Rxe3 Qxc6+ 56. Qxc6 Rxc6 $14) (55. Qg6+ $142 Kh8 56. Bd3 (56. Rxe3 Qxc6+ 57. Qxc6 Rxc6 $16) 56... Ng5 57. Re8+ (57. Rxe3 Qxc6+ 58. Qxc6 Rxc6 $14) 57... Qxe8 58. Qxe8+ Kg7 59. Qe5+ (59. Qxe3 Rxc6 60. Qe7+ Nf7 $18) (59. Qg6+ Kh8 60. Qf6+ Kg8 61. Bc4+ Kh7 62. Qf8 Rg7 63. Bd3+ Rg6) 59... Kf8 60. Qxc7) 55... Kg8 $18 {[%emt 0:00:07]} 56. Qf5 {[%emt 0:00:00]} Qa1 {[%emt 0:00:58]} 57. Kg1 {[%emt 0:00:00]} Qc1 {[%emt 0:00:49]} 58. Qf6 {[%emt 0:00:25]} Kf8 {[%emt 0:00:18]} 59. Qf4 {[%emt 0:02:45]} Rxc6 {[%emt 0:00:41]} 60. Rxc6 {[%emt 0:00:05]} (60. Qxg4 Rxe6 61. Qxe6 Qe1 62. Qc8+ Kg7 $18) 60... Qxc6 {[%emt 0:00:07]} 61. Bc4 {[%emt 0:00:11]} (61. Qxg4 Qc3 62. Qd4 Qc6 $18) 1-0

[Event "Azerbaijan Men-ch Final 2024"]
[Site "Baku"]
[Date "2024.04.21"]
[Round "1.1"]
[White "Babazada, Khazar"]
[Black "Suleymanli, Aydin"]
[Result "0-1"]
[ECO "C84"]
[WhiteElo "2474"]
[BlackElo "2607"]
[Annotator "TA"]
[PlyCount "98"]
[EventDate "2024.04.20"]
[EventType "k.o."]
[EventCountry "AZE"]
[SourceTitle "playchess.com"]
[Source "ChessBase"]
[SourceQuality "1"]
[TimeControl "5400+30"]

{[%evp 13,98,11,25,8,9,10,17,0,8,0,5,-2,8,14,1,0,9,0,0,0,0,0,0,0,0,-13,0,0,-7,0,5,-20,-25,-27,-33,-37,-28,-40,-10,-4,-17,-23,-14,-78,-92,-85,-81,-87,-81,-77,-30,-12,0,0,0,-42,-42,-33,-31,-42,-71,-71,-31,-31,-32,-33,-33,-39,-21,-305,-207,-204,0,-285,0,-193,-218,-391,-480,-479,-477,-462,-475,-446,-390,-371,-381]} 1. e4 {[%emt 0:00:14]} e5 {[%emt 0:00:07]} 2. Nf3 {[%emt 0:00:05]} Nc6 {[%emt 0:00:03]} 3. Bb5 {[%emt 0:00:27][%cal Bf1b5,Bb5a4,Ba4b3][%mdl 32]} a6 {[%emt 0:00:04]} 4. Ba4 {[%emt 0:00:04]} Nf6 {[%emt 0:00:04]} 5. O-O {[%emt 0:00:17]} Be7 {[%emt 0:00:09]} 6. d3 {[%emt 0:00:11]} b5 {[%emt 0:00:27]} 7. Bb3 {[%emt 0:00:04]} d6 {[%emt 0:00:36]} 8. Bd2 {[%emt 0:00:15]} Bg4 {[%emt 0:01:41]} 9. c3 {[%emt 0:00:08] Inhibits Nd4.} O-O {[%emt 0:01:15]} 10. h3 {[%emt 0:00:06] The position is equal.} Bh5 {[%emt 0:00:36]} 11. Re1 {[%emt 0:01:49]} Na5 {[%emt 0:00:34]} 12. Bc2 {[%emt 0:00:05]} c5 {[%emt 0:00:03]} 13. Bc1 {[%emt 0:00:04]} Qc7 {[%emt 0:01:29]} 14. Nbd2 {[%emt 0:00:18][%cal Bb1d2,Bd2f1,Bf1g3][%mdl 32]} Rad8 {[%emt 0:00:26]} 15. Nf1 {[%emt 0:00:25]} Rfe8 {[%emt 0:00:27]} 16. Ng3 {[%emt 0:06:05]} Bg6 $1 {[%emt 0:00:04]} 17. Nh4 {[%emt 0:00:23]} d5 {[%emt 0:01:05]} 18. Qe2 {[%emt 0:02:23]} c4 {[%emt 0:00:16]} 19. dxc4 {[%emt 0:04:04]} Nxc4 {[%emt 0:02:15]} 20. Nxg6 {[%emt 0:19:27]} hxg6 {[%emt 0:00:06]} 21. exd5 {[%emt 0:00:52]} Bc5 {[%emt 0:14:15]} 22. b3 {[%emt 0:19:39]} Nb6 {[%emt 0:05:53]} (22... e4 {with more complications.} 23. bxc4 Qxg3 24. Rb1 Qxc3 25. cxb5 Nxd5 26. Bxe4 Nf6) 23. d6 {[%emt 0:07:31]} Bxd6 {[%emt 0:05:08] ...e4 would now be deadly.} (23... Rxd6 $2 24. b4 $18) 24. Qf3 {[%emt 0:00:12]} Nbd5 {[%emt 0:14:15]} 25. Bd2 {[%emt 0:00:10]} b4 {[%emt 0:09:54]} (25... Bb4 $5 26. cxb4 (26. Bxg6 $2 Nxc3 27. Bxf7+ Kxf7 $19) 26... Qxc2 $15) 26. c4 {[%emt 0:00:25] [#]} Nc3 $1 {[%emt 0:04:37]} 27. Bxc3 {[%emt 0:01:44]} bxc3 {[%emt 0:00:07]} 28. Qxc3 {[%emt 0:01:53] [#]} (28. Rad1 $11 {keeps the balance.}) 28... e4 $1 $17 {[%emt 0:00:54]} 29. Rad1 {[%emt 0:03:23] Dodges Nd5} (29. Bxe4 $2 {perishes.} Be5 (29... Bxg3 $2 30. Qxg3 Qxg3 31. fxg3 $19) 30. Qc1 Bxg3 $19) (29. Nxe4 $2 Bh2+ 30. Kf1 Nxe4 31. Rxe4 (31. Bxe4 $2 {loses.} Be5 $19) 31... Rxe4 32. Bxe4 Be5 $19) 29... Be5 {[%emt 0:03:29]} 30. Qe3 {[%emt 0:00:26]} Bf4 {[%emt 0:00:15] Black is more active.} 31. Qe2 {[%emt 0:02:17]} Bxg3 {[%emt 0:01:41]} ({Better is} 31... Rxd1 $17 32. Rxd1 Bxg3 33. fxg3 Qxg3) 32. fxg3 $11 {[%emt 0:00:08]} Qxg3 {[%emt 0:00:29]} 33. Qe3 {[%emt 0:00:32]} Qc7 {[%emt 0:05:01]} 34. a3 {[%emt 0:08:53]} a5 {[%emt 0:01:04]} 35. Kh1 {[%emt 0:08:32]} Rc8 {[%emt 0:10:44]} 36. Qd4 {[%emt 0:03:07]} Red8 {[%emt 0:03:14]} 37. Qe3 {[%emt 0:00:04]} Rxd1 {[%emt 0:00:46]} (37... a4 $5) 38. Rxd1 {[%emt 0:01:47]} Qe7 {[%emt 0:00:12]} 39. a4 {[%emt 0:04:45]} Re8 {[%emt 0:01:40]} 40. Kg1 {[%emt 0:00:00]} Qe5 {[%emt 0:00:00]} 41. Qd4 $2 {[%emt 0:00:00][%mdl 8192]} (41. g4 $11 {and White is okay.}) 41... Qg3 {[%emt 0:00:00] And now ...e3 would win.} 42. Qf2 {[%emt 0:00:00]} Qe5 {[%emt 0:00:00] Hoping for ...e3.} 43. Qd4 {[%emt 0:00:00]} Qg3 {[%emt 0:00:00]} 44. Qf2 {[%emt 0:00:00] [#]} Qg5 {[%emt 0:00:00]} 45. Qd4 {[%emt 0:00:00]} (45. Re1 {was called for.}) 45... e3 $19 {[%emt 0:00:00] White must now prevent ...Qg3.} 46. Re1 {[%emt 0:00:00]} Qg3 {[%emt 0:00:00]} 47. Re2 {[%emt 0:00:00]} Nh5 {[%emt 0:00:00] ...Nf4 is the strong threat.} 48. Be4 {[%emt 0:00:00][%cal Oe4f3]} Qf4 {[%emt 0:00:00]} ({Wrong is} 48... f5 $2 49. Rxe3 Qb8 50. Bf3 $18) 49. Rxe3 {[%emt 0:00:00]} Ng3 {[%emt 0:00:00] Weighted Error Value: White=0.19 (very precise) /Black=0.23 (precise) .  Loses game:     	White=1     	---        Mistake:       	White=2     	Black=1      Inaccurate:     	White=1     	Black=4      OK:         	White=23    	Black=23     Best:        	White=3     	---        Strong:       	---       	Black=1      Brilliant:      	---       	Black=1} 0-1

[Event "Azerbaijan Men-ch Final 2024"]
[Site "Baku"]
[Date "2024.04.22"]
[Round "1.2"]
[White "Suleymanli, Aydin"]
[Black "Babazada, Khazar"]
[Result "1-0"]
[ECO "B30"]
[WhiteElo "2607"]
[BlackElo "2474"]
[Annotator "TA"]
[PlyCount "43"]
[EventDate "2024.04.20"]
[EventType "k.o."]
[EventCountry "AZE"]
[SourceTitle "playchess.com"]
[Source "ChessBase"]
[SourceQuality "1"]
[TimeControl "5400+30"]

{[%evp 9,43,21,8,0,14,0,11,6,93,109,270,261,452,452,421,162,152,132,125,134,412,415,429,406,414,429,902,907,906,896,935,947,968,961,951,939]} 1. e4 {[%emt 0:00:44]} c5 {[%emt 0:00:14]} 2. Nf3 {[%emt 0:00:05]} Nc6 {[%emt 0:00:07]} 3. Bb5 {[%emt 0:00:05]} e6 {[%emt 0:00:09]} 4. Bxc6 {[%emt 0:00:20]} bxc6 {[%emt 0:00:05]} 5. d3 {[%emt 0:00:02]} Qc7 {[%emt 0:00:19]} 6. Nbd2 {[%emt 0:04:31]} e5 {[%emt 0:00:25]} 7. O-O {[%emt 0:03:00]} f6 {[%emt 0:00:08]} 8. Nh4 {[%emt 0:05:19] The position is equal.} Ne7 {[%emt 0:00:07]} (8... d6 $11 {remains equal.}) 9. f4 $1 $16 {[%emt 0:03:34] Hoping for fxe5.} exf4 {[%emt 0:00:45]} (9... d5 $16) 10. Nc4 $18 {[%emt 0:00:48]} g5 {[%emt 0:17:50]} (10... d6 11. Bxf4 (11. Rxf4 Be6 $14) 11... Ng6) 11. Qh5+ {[%emt 0:00:30]} Kd8 {[%emt 0:00:01][%cal Od7d5] [#]} 12. e5 $1 {[%emt 0:18:56][%mdl 512]} fxe5 {[%emt 0:11:12] Strongly threatening ...d5.} 13. Qxg5 {[%emt 0:04:14]} Rg8 {[%emt 0:01:36]} 14. Qxe5 $40 {[%emt 0:06:35][%mdl 128] Black is in trouble. White has more active pieces. The black rooks are passive.} Nd5 $2 {[%emt 0:02:01][%mdl 8192]} (14... Qxe5 $16 15. Nxe5 d6) 15. Qh5 {[%emt 0:04:17]} ({Weaker is} 15. Bxf4 Nxf4 16. Qxf4 (16. Rxf4 Qxe5 17. Nxe5 Rb8 $18) 16... Qxf4 17. Rxf4 d5 $18) 15... d6 {[%emt 0:03:50] ...Bg4 is the strong threat.} 16. Bxf4 {[%emt 0:01:33]} Be6 {[%emt 0:06:03]} 17. Bg3 {[%emt 0:02:33]} Be7 {[%emt 0:10:53]} (17... Qd7 $142 18. Rae1 Kc7 19. Rxf8 Rgxf8 20. Bxd6+ (20. Nxd6 Rg8 $18) 20... Kb7 21. Bxf8 (21. Bxc5 Bg4 $18) 21... Rxf8) 18. Rae1 {[%emt 0:00:19]} Qd7 {[%emt 0:01:18]} 19. Qh6 {[%emt 0:00:13]} Nc7 {[%emt 0:05:27] [#]} 20. Nf5 $1 {[%emt 0:02:11][%mdl 512] aiming for Nxe7.} Rg6 {[%emt 0:03:35]} (20... Rxg3 21. Nxg3) 21. Qxh7 {[%emt 0:00:23]} Bxf5 {[%emt 0:00:30] [#]} 22. Rxf5 $1 {[%emt 0:00:12][%mdl 512] Weighted Error Value: White=0.22 (precise) /Black=0.61.  Loses game:     	---       	Black=2      Mistake:       	White=1     	Black=3      OK:         	White=5     	Black=2      Best:        	White=3     	Black=3      Strong:       	White=1     	---} 1-0

[Event "Azerbaijan Men-ch Final 2024"]
[Site "Baku"]
[Date "2024.04.22"]
[Round "1.2"]
[White "Muradli, Mahammad"]
[Black "Rasulov, Vugar"]
[Result "1-0"]
[ECO "E15"]
[WhiteElo "2555"]
[BlackElo "2551"]
[Annotator "TA"]
[PlyCount "92"]
[EventDate "2024.04.20"]
[EventType "k.o."]
[EventCountry "AZE"]
[SourceTitle "playchess.com"]
[Source "ChessBase"]
[SourceQuality "1"]
[TimeControl "5400+30"]

{[%evp 11,92,23,24,0,0,0,0,0,0,0,0,0,10,0,8,12,19,-14,-14,-25,0,0,0,-16,0,-43,13,19,11,17,18,14,35,38,50,51,52,40,45,44,41,52,51,43,110,146,130,111,159,181,179,173,190,187,186,177,219,227,216,222,273,218,208,156,204,207,283,284,329,189,189,184,5185,5081,5106,4618,3140,2072,29976,29976,29974,29975,29972]} 1. d4 {[%emt 0:05:45]} Nf6 {[%emt 0:00:13]} 2. c4 {[%emt 0:00:05]} e6 {[%emt 0:00:17]} 3. Nf3 {[%emt 0:00:08]} b6 {[%emt 0:00:24]} 4. g3 {[%emt 0:00:05]} Ba6 {[%emt 0:00:21]} 5. Qc2 {[%emt 0:01:57]} Bb7 {[%emt 0:00:21]} 6. Bg2 {[%emt 0:01:18]} c5 {[%emt 0:00:07]} 7. d5 {[%emt 0:00:35]} exd5 {[%emt 0:00:07]} 8. cxd5 {[%emt 0:00:24]} Nxd5 {[%emt 0:00:06]} 9. O-O {[%emt 0:00:58] The position is equal.} Be7 {[%emt 0:00:06] Repels Ng5} 10. Rd1 {[%emt 0:01:36]} Nc6 {[%emt 0:00:12][%cal Oe8g8]} 11. a3 {[%emt 0:00:18]} (11. Rxd5 Nb4 12. Qc3 Nxd5 $17 (12... Bxd5 13. Qxg7 Bf6 14. Qh6 $15)) 11... Nc7 {[%emt 0:03:01]} 12. Nc3 {[%emt 0:02:10][%cal Of3e5]} O-O {[%emt 0:03:50]} 13. Bf4 {[%emt 0:02:22]} Ne6 {[%emt 0:06:09]} 14. Nd5 {[%emt 0:03:34][%mdl 1024] White has compensation.} Re8 {[%emt 0:02:43]} 15. e3 {[%emt 0:03:00]} d6 {[%emt 0:09:19]} 16. Rd2 {[%emt 0:04:27]} Bf8 {[%emt 0:02:58]} 17. Rad1 {[%emt 0:02:09]} h6 {[%emt 0:04:31]} 18. h4 {[%emt 0:08:50] [#]} (18. Bxd6 $5 Bxd6 19. Nc3 $11) 18... Ncd4 {[%emt 0:07:26]} 19. Nxd4 $11 {[%emt 0:05:16]} cxd4 {[%emt 0:01:52]} 20. exd4 {[%emt 0:00:11]} Rc8 {[%emt 0:07:49]} 21. Qb3 {[%emt 0:01:19]} Nxf4 {[%emt 0:04:24]} 22. Nxf4 {[%emt 0:00:34]} Bxg2 {[%emt 0:00:07]} 23. Kxg2 {[%emt 0:01:00]} Qd7 {[%emt 0:00:07]} 24. Rd3 {[%emt 0:10:11]} Qc6+ {[%emt 0:05:23]} 25. Nd5 {[%emt 0:01:19]} Qb7 {[%emt 0:03:34]} 26. Rf3 {[%emt 0:03:42]} Re6 {[%emt 0:01:03]} 27. Rf5 {[%emt 0:04:42]} g6 {[%emt 0:04:30] [#]} ({Better is} 27... Qc6 $14) 28. Qf3 $1 $16 {[%emt 0:01:07] Nf6+ would now be deadly.} Kg7 {[%emt 0:03:54]} (28... gxf5 $2 29. Nf6+ Rxf6 30. Qxb7 $18) 29. Rf6 {[%emt 0:02:39]} Qd7 {[%emt 0:08:21]} (29... Rxf6 $142 30. Qxf6+ Kg8) 30. h5 {[%emt 0:02:52] Hoping for hxg6. White has more active pieces.} Rxf6 {[%emt 0:01:48]} 31. Qxf6+ {[%emt 0:02:04]} Kh7 {[%emt 0:00:02]} 32. Qf3 {[%emt 0:09:53] Black must now prevent Nf6+.} Bg7 {[%emt 0:01:57]} 33. Re1 $36 {[%emt 0:01:16][%mdl 2048] And now Re7 would win. White is really pushing.} Qf5 {[%emt 0:06:18]} 34. Qxf5 {[%emt 0:03:15]} gxf5 $18 {[%emt 0:00:01][%mdl 4096] Endgame. KRB-KRN} 35. Re7 $1 {[%emt 0:00:11][%csl LRa7,LRf7]} Rf8 {[%emt 0:00:20]} 36. Nc7 {[%emt 0:08:21]} f4 {[%emt 0:04:52]} 37. Kf3 {[%emt 0:02:07]} fxg3 {[%emt 0:00:23]} (37... Kg8 $16) 38. fxg3 {[%emt 0:00:07]} d5 {[%emt 0:01:21]} 39. Ke3 {[%emt 0:01:03]} (39. Nxd5 Bxd4 40. b4 (40. Rxa7 Bxb2 41. Nxb6 Kg7 $11) 40... a5 $16) 39... Kg8 {[%emt 0:01:49]} 40. Re8 {[%emt 0:00:00]} ({And not} 40. Nxd5 Rd8 41. Nc3 (41. Ke4 $2 f5+ 42. Kxf5 Rxd5+ 43. Ke6 Rxh5 $19) 41... Bxd4+ 42. Ke4 Bxc3 43. bxc3 Rc8 $11) (40. Rd7 $142) 40... Rxe8+ {[%emt 0:00:00]} 41. Nxe8 {[%emt 0:00:00]} Kf8 {[%emt 0:00:00] [#]} (41... f5 42. Nd6 Bf6) 42. Nxg7 $1 {[%emt 0:00:00]} Kxg7 {[%emt 0:00:00] KP-KP} 43. Kf4 {[%emt 0:00:00]} Kf6 {[%emt 0:00:00]} 44. g4 {[%emt 0:00:00][%cal Bg3g4,Bg4g5][%mdl 32]} b5 {[%emt 0:00:00]} 45. b4 {[%emt 0:00:00]} a6 {[%emt 0:00:00] [#]} 46. g5+ $1 {[%emt 0:00:00][%mdl 512]} Kg7 {[%emt 0:11:24] Weighted Error Value: White=0.13 (very precise) /Black=0.34.  Mistake:       	White=1     	Black=5      Inaccurate:     	White=2     	Black=1      OK:         	White=13    	Black=12     Best:        	White=2     	Black=2      Strong:       	White=2     	---} (46... hxg5+ 47. Kg4) 1-0

[Event "Azerbaijan Men-ch Final 2024"]
[Site "Baku"]
[Date "2024.04.23"]
[Round "1.3"]
[White "Rasulov, Vugar"]
[Black "Muradli, Mahammad"]
[Result "0-1"]
[ECO "B90"]
[WhiteElo "2551"]
[BlackElo "2555"]
[Annotator "RC"]
[PlyCount "146"]
[EventDate "2024.04.20"]
[EventType "k.o."]
[EventCountry "AZE"]
[SourceTitle "playchess.com"]
[Source "ChessBase"]
[SourceQuality "1"]
[TimeControl "900+10"]

1. e4 {[%emt 0:00:03]} c5 {[%emt 0:00:07]} 2. Nf3 {[%emt 0:00:03]} d6 {[%emt 0:00:01]} 3. d4 {[%emt 0:00:03]} cxd4 {[%emt 0:00:02]} 4. Nxd4 {[%emt 0:00:03]} Nf6 {[%emt 0:00:01]} 5. Nc3 {[%emt 0:00:03]} a6 {[%emt 0:00:02]} 6. a3 {[%emt 0:00:03]} e5 {[%emt 0:00:06]} 7. Nf3 {[%emt 0:00:01]} Be7 {[%emt 0:00:39]} 8. Bc4 {[%emt 0:00:10]} Be6 {[%emt 0:00:32]} 9. Ba2 {[%emt 0:00:10]} Nbd7 {[%emt 0:00:45]} 10. O-O {[%emt 0:00:14]} Rc8 {[%emt 0:00:43]} 11. Qe2 {[%emt 0:00:44]} h6 {[%emt 0:00:37]} 12. Nh4 {[%emt 0:00:17]} Bxa2 {[%emt 0:01:28]} 13. Rxa2 {[%emt 0:00:02]} g6 {[%emt 0:00:01]} 14. Nf3 {[%emt 0:00:14]} Qc7 {[%emt 0:00:05]} 15. Rd1 {[%emt 0:00:48]} Kf8 {[%emt 0:00:09]} 16. Be3 {[%emt 0:00:55]} Kg7 {[%emt 0:00:07]} 17. a4 {[%emt 0:00:52]} Nc5 {[%emt 0:02:06]} 18. Bxc5 {[%emt 0:00:26]} Qxc5 {[%emt 0:00:01]} 19. Ne1 {[%emt 0:00:43]} Qc4 {[%emt 0:00:34]} 20. Rd3 {[%emt 0:00:36]} Rc6 {[%emt 0:00:55]} 21. g3 {[%emt 0:00:26]} Bd8 {[%emt 0:01:08]} 22. b3 {[%emt 0:00:38]} Qb4 {[%emt 0:00:09]} 23. Nd5 {[%emt 0:00:45]} Qxe4 {[%emt 0:00:47]} 24. Qxe4 {[%emt 0:00:22]} Nxe4 {[%emt 0:00:01]} 25. Ng2 {[%emt 0:00:52]} b5 {[%emt 0:02:51]} 26. axb5 {[%emt 0:00:11]} axb5 {[%emt 0:00:01]} 27. Kf1 {[%emt 0:00:44]} Bb6 {[%emt 0:01:16]} 28. f3 {[%emt 0:00:52]} Nf6 {[%emt 0:00:27]} 29. Ra6 {[%emt 0:01:09]} Rb8 {[%emt 0:01:28]} 30. Nxf6 {[%emt 0:01:20]} Kxf6 {[%emt 0:00:01]} 31. Ne3 {[%emt 0:00:03]} Ke6 {[%emt 0:00:17]} 32. Nd5 {[%emt 0:00:15]} Kd7 {[%emt 0:01:20]} 33. Nf6+ {[%emt 0:00:59]} Kc7 {[%emt 0:00:11]} 34. Nd5+ {[%emt 0:00:03]} Kd7 {[%emt 0:00:04]} 35. Nf6+ {[%emt 0:01:08]} Ke6 {[%emt 0:00:37]} 36. Nd5 {[%emt 0:00:02]} f5 {[%emt 0:00:13]} 37. c3 {[%emt 0:01:01]} g5 {[%emt 0:00:07]} 38. Ke2 {[%emt 0:00:13]} Kd7 {[%emt 0:00:37]} 39. Nf6+ {[%emt 0:00:34]} Ke6 {[%emt 0:00:22]} 40. Nd5 {[%emt 0:00:01]} h5 {[%emt 0:00:01]} 41. Kd1 {[%emt 0:00:27]} g4 {[%emt 0:00:14]} 42. fxg4 {[%emt 0:00:19]} hxg4 {[%emt 0:00:01]} 43. Kc2 {[%emt 0:00:01]} Kd7 {[%emt 0:00:49]} 44. Nf6+ {[%emt 0:00:03]} Kc7 {[%emt 0:00:03]} 45. Nd5+ {[%emt 0:00:02]} Kd7 {[%emt 0:00:09]} 46. b4 {[%emt 0:00:28]} Bg1 {[%emt 0:00:22]} 47. Ra1 {[%emt 0:00:02]} Bd4 {[%emt 0:00:09]} 48. Kb3 {[%emt 0:00:19]} Ke6 {[%emt 0:00:13]} 49. cxd4 {[%emt 0:00:27]} Kxd5 {[%emt 0:00:01]} 50. dxe5+ {[%emt 0:00:01]} Kxe5 {[%emt 0:00:02]} 51. Re1+ {[%emt 0:00:23]} Kf6 {[%emt 0:00:01]} 52. Rd5 {[%emt 0:00:05]} Rbc8 {[%emt 0:00:30]} 53. Rxb5 {[%emt 0:00:20]} Rc2 {[%emt 0:00:06]} 54. Rd5 {[%emt 0:00:09]} R8c3+ {[%emt 0:00:01]} 55. Ka4 {[%emt 0:00:01]} Ra2+ {[%emt 0:00:09]} 56. Kb5 {[%emt 0:00:01]} Rxh2 {[%emt 0:00:02]} 57. Rf1 {[%emt 0:01:36]} Rh5 {[%emt 0:00:33]} 58. Rxd6+ {[%emt 0:00:19]} Kg5 {[%emt 0:00:01]} 59. Rd5 {[%emt 0:00:15]} Rf3 {[%emt 0:00:02]} 60. Rc1 {[%emt 0:00:55]} Rxg3 {[%emt 0:00:06]} 61. Kc6 {[%emt 0:00:09]} Rh6+ {[%emt 0:00:14]} 62. Kc7 {[%emt 0:00:06]} Re3 {[%emt 0:00:19]} 63. Rd7 {[%emt 0:00:47]} Rb3 {[%emt 0:00:07]} 64. Rd4 {[%emt 0:00:14]} g3 {[%emt 0:00:09]} 65. Rf1 {[%emt 0:00:09]} Rh4 {[%emt 0:00:14]} 66. Rd5 {[%emt 0:00:12]} Rf4 {[%emt 0:00:01]} 67. Rg1 {[%emt 0:00:02]} Rfxb4 {[%emt 0:00:04]} 68. Kd6 {[%emt 0:00:06]} Kg4 {[%emt 0:00:02]} 69. Ke6 {[%emt 0:00:05]} f4 {[%emt 0:00:04]} 70. Rc1 {[%emt 0:00:08]} Rb6+ {[%emt 0:00:04]} 71. Kf7 {[%emt 0:00:05]} Rb7+ {[%emt 0:00:03]} 72. Ke8 {[%emt 0:00:09]} g2 {[%emt 0:00:06]} 73. Rd6 {[%emt 0:00:08]} Rb8+ {[%emt 0:00:04]} 0-1